Cogmind - Beta 13 @@@ ROGUE MODE // 2024.06.11 @ 12:35:47 Player: Billy Result: Destroyed by Y-54 Guardian with Gatling Laser Performance ------------- Evolutions (4) 2000 Regions Visited (7) 1400 Robots Destroyed (77) 385 Value Destroyed (2016) 2016 Prototype IDs (3) 60 Alien Tech Used (0) 0 Bonus (585) 585 TOTAL SCORE: 6446 Bonus ------- High Alert Combat Kills 113 Follower Combat Kills 472 Cogmind --------- Core Integrity 0/850 Matter 295/300 Energy 100/100 System Corruption 4% Temperature Cool (6) Movement Core (50) Location -6/Extension Parts ------- > --- POWER (1) -------- (None) > --- PROPULSION (5) --- (None) > --- UTILITY (6) ------ (None) > --- WEAPON (3) ------- (None) > --- INVENTORY (5) ---- Heavy Deuterium Engine Improved Terrain Scanner Improved Medium Armor Plating Drone Bay (1/2) Peak State ------------ > --- POWER ------------ Heavy Deuterium Engine > --- PROPULSION ------- Improved Titanium Leg Improved Titanium Leg Improved Titanium Leg Improved Titanium Leg Improved Titanium Leg > --- UTILITY ---------- Improved Heat Sink Advanced Sensor Array Improved Terrain Scanner Transmission Jammer Hardened Heavy Armor Plating > --- WEAPON ----------- Gatling Laser Flail Axe > --- INVENTORY -------- Reinforced Deuterium Engine Improved Titanium Leg Improved Melee Analysis Suite Drone Bay Assault Rifle [Rating: 58] Favorites ----------- Power Heavy Deuterium Engine Engine Heavy Deuterium Engine Power Core Nuclear Core Propulsion Improved Titanium Leg Leg Improved Titanium Leg Flight Unit VTOL Module Utility Improved Terrain Scanner Device Improved Terrain Scanner Storage Small Storage Unit Processor Terrain Scan Processor Protection Hardened Heavy Armor Plating Weapon Flail Energy Gun High-powered Field Laser Energy Cannon Phase Cannon Ballistic Gun Assault Rifle Ballistic Cannon Light Cannon Launcher Grenade Launcher Special Weapon Improved Remote Datajack Impact Weapon Flail Slashing Weapon Axe Build | -11 -10 -9 -8 -7 -7 -6 -6 ------- Run | Yrd Mat Mat Mat Fac Sto Fac Ext Slots Evolved 8 | . . 2 2 2 . 2 . Power . | . . . . . . . . Propulsion 3 | . . 1 1 . . 1 . Utility 4 | . . . 1 2 . 1 . Weapon 1 | . . 1 . . . . . Parts Attached 90 | 6 8 16 3 7 24 17 9 Power 11 | 1 1 2 . 1 3 1 2 Engine 7 | 1 1 . . 1 2 1 1 Core 4 | . . 2 . . 1 . 1 Reactor . | . . . . . . . . Propulsion 32 | 2 1 8 2 . 10 5 4 Treads . | . . . . . . . . Leg 20 | 2 1 4 . . 10 3 . Wheel . | . . . . . . . . Hover . | . . . . . . . . Flight 12 | . . 4 2 . . 2 4 Utility 23 | 1 2 2 1 3 6 7 1 Device 13 | . 1 1 1 2 4 3 1 Storage 3 | 1 . 1 . . . 1 . Processor 2 | . . . . 1 . 1 . Hackware . | . . . . . . . . Protection 5 | . 1 . . . 2 2 . Artifact . | . . . . . . . . Weapon 24 | 2 4 4 . 3 5 4 2 Energy Gun 4 | 1 . . . 1 2 . . Energy Cannon 1 | . . . . . . 1 . Ballistic Gun 10 | 1 1 2 . 1 1 2 2 Ballistic Cannon 2 | . 1 1 . . . . . Launcher 4 | . 2 1 . . 1 . . Special Weapon 1 | . . . . . . 1 . Impact Weapon 1 | . . . . 1 . . . Slashing Weapon 1 | . . . . . 1 . . Piercing Weapon . | . . . . . . . . Special Melee Weapon . | . . . . . . . . Unidentified Prototypes 3 | . . . . 1 2 . . Corrupted Parts 9 | . . . . . 9 . . System Corruption 35 | . . . . . 35 . . Parts Lost 46 | . 4 4 1 6 5 18 8 Power 5 | . 1 . . 1 1 . 2 Propulsion 21 | . 1 2 1 3 2 8 4 Utility 7 | . 1 . . . 1 4 1 Weapon 13 | . 1 2 . 2 1 6 1 Highest Loss Streak 7 | . 3 1 1 2 4 7 6 To Critical Strikes 1 | . . . . . . 1 . Average Slot Usage (%) 78 | . 92 93 88 76 66 81 45 Engine 5 | . 10 3 . 4 2 6 5 Core 1 | . . 8 9 1 . . . Leg 19 | . 27 25 . . 16 28 3 Flight 5 | . . 3 34 18 . 1 9 Device 15 | . 8 . 18 23 19 23 5 Storage 6 | . 14 22 9 7 . . 2 Processor 1 | . . . . 6 . 1 5 Protection 2 | . 2 . . . 6 4 2 Energy Gun 3 | . 6 . . 6 5 3 . Ballistic Gun 4 | . 4 14 . . 2 2 5 Ballistic Cannon 3 | . 7 11 9 2 . . . Launcher 2 | . 9 5 9 . . . . Impact Weapon 1 | . . . . . 7 2 . Slashing Weapon 1 | . . . . . 1 4 . Naked Turns 16 | . . . . . . . 16 Heaviest Build 45 | 14 19 23 16 21 39 45 32 Greatest Support 100 | 20 20 30 22 22 80 100 20 Greatest Overweight (x) 6 | 1 1 6 . 1 4 4 6 Average Overweight (x) . | . . . . . . . . Largest Inventory Capacity 8 | 8 8 8 5 5 5 8 8 Average Capacity 5 | 7 8 7 5 5 5 5 6 Most Carried 8 | 6 8 8 5 5 5 5 6 Average Carried 5 | 3 7 7 3 4 4 4 4 Final Capacity 8 | 8 8 5 5 5 5 8 5 Final Carried 6 | 6 6 5 4 5 5 5 4 Class Distribution -------------------- 58% | Mutant 15% | Scavenger-Mutant 7% | Scavenger-Gunner 7% | Scavenger-Sprinter 6% | Bomber 3% | Sprinter Dominant Class ---------------- Mutant | -10/Materials Bomber | -9/Materials Sprinter | -8/Materials Mutant | -7/Factory Mutant | -7/Storage Mutant | -6/Factory Mutant | -6/Extension Resources | -11 -10 -9 -8 -7 -7 -6 -6 ----------- Run | Yrd Mat Mat Mat Fac Sto Fac Ext Matter Collected 1802 | 165 215 711 . 47 385 197 82 Remotely . | . . . . . . . . Salvage Created 2099 | . 310 635 . 47 316 709 82 Parts 143 | . 29 62 . 2 9 35 6 Haulers Intercepted . | . . . . . . . . Recyclers Shooed 2 | . . 2 . . . . . Parts Field Recycled . | . . . . . . . . Retrieved Matter . | . . . . . . . . Parts Self-Destructed . | . . . . . . . . Prevented . | . . . . . . . . Kills | -11 -10 -9 -8 -7 -7 -6 -6 ------- Run | Yrd Mat Mat Mat Fac Sto Fac Ext Combat Hostiles Destroyed 53 | . 16 18 . . 5 11 3 Melee 9 | . . . . . 2 7 . Guns 11 | . 2 7 . . . 2 . Cannons 8 | . 2 3 . . . . 3 AOE 25 | . 12 8 . . 3 2 . Classes Destroyed 12 | . 6 3 . . 2 1 . Worker 2 | . 1 1 . . . . . Builder 10 | . 2 5 . . 3 . . Tunneler 1 | . . 1 . . . . . Recycler 3 | . . 2 . . . 1 . Mechanic 3 | . 1 . . . 1 1 . Operator 1 | . . . . . . 1 . Watcher 4 | . 2 . . 2 . . . Swarmer 21 | . 9 8 . . . 1 3 Grunt 21 | . 7 6 . . 2 6 . Brawler 1 | . . . . . 1 . . Sentry 6 | . . 4 . . 1 1 . Programmer 4 | . . . . . 1 3 . Best Kill Streak 8 | . 8 8 . 1 2 3 3 Combat Bots Only 6 | . 6 6 . . 2 2 3 Max Kills in Single Turn 4 | . 3 4 . 1 2 3 1 Gunslinging . | . . . . . . . . Exploded 3 | . 3 3 . . 2 2 . Melee 1 | . . . . . 1 1 . Uniques/NPCs Destroyed . | . . . . . . . . Combat | -11 -10 -9 -8 -7 -7 -6 -6 -------- Run | Yrd Mat Mat Mat Fac Sto Fac Ext Hostile Shots Fired 773 | . 61 71 6 20 190 281 144 Missed 258 | . 12 22 4 6 80 85 49 Damage Taken 6948 | . 624 765 107 200 1227 3012 1013 Core 1324 | . 75 156 37 36 163 322 535 Absorbed by Shields . | . . . . . . . . Ignored by Resistances 51 | . . . . . 51 . . Core Remaining (%) 79 | 100 70 61 93 . 71 . . Volleys Fired 120 | . 26 35 5 20 5 20 9 Largest 3 | . 2 3 1 2 2 2 1 Hottest 106 | . 80 88 30 95 106 105 85 Shots Fired 222 | . 50 98 5 21 10 29 9 Gun 112 | . 9 50 . 21 6 25 1 Cannon 66 | . 20 34 . . . 4 8 Launcher 44 | . 21 14 5 . 4 . . Special . | . . . . . . . . Kinetic 134 | . 23 84 . 1 1 24 1 Thermal 44 | . 6 . . 20 5 5 8 Explosive 40 | . 21 14 5 . . . . Electromagnetic 4 | . . . . . 4 . . Robot Hit Streak 8 | . 7 8 . 6 4 5 3 Robot Miss Streak 4 | . 4 4 . 1 3 2 3 Penetration Max . | . . . . . . . . Secondary Targets . | . . . . . . . . Shots Hit Robots 171 | . 25 59 . 8 18 56 5 Core Hits 120 | . 35 44 . 3 11 23 4 Critical Kills 1 | . . 1 . . . . . Critical Parts Destroyed 1 | . . . . . 1 . . Critical Strikes 7 | . . 1 . 1 3 2 . Burn 2 | . . . . 1 1 . . Destroy 1 | . . 1 . . . . . Smash 1 | . . . . . 1 . . Sever 3 | . . . . . 1 2 . Melee Attacks 72 | . . . . 1 21 50 . Impact 17 | . . . . 1 14 2 . Slashing 55 | . . . . . 7 48 . Piercing . | . . . . . . . . Sneak Attacks 5 | . . . . . 2 3 . Combat Hostiles . | . . . . . . . . Follow-up Attacks 4 | . . . . . 2 2 . Damage Inflicted 6387 | . 1428 1408 . 191 966 2206 188 Guns 874 | . 81 392 . 134 53 202 12 Cannons 649 | . 159 275 . . . 94 121 Explosions 2607 | . 1188 737 . . 286 396 . Melee 2104 | . . . . 57 595 1452 . Ramming 153 | . . 4 . . 32 62 55 Kinetic 1062 | . 178 667 . . 25 180 12 Thermal 993 | . 62 . . 134 164 512 121 Explosive 1924 | . 1188 736 . . . . . Electromagnetic 151 | . . 1 . . 150 . . Impact 464 | . . . . 57 386 21 . Slashing 1640 | . . . . . 209 1431 . Piercing . | . . . . . . . . Highest Corruption 38 | . . 3 . . 38 3 4 Average Corruption 7 | . . 1 . . 30 2 3 Corruption Purged . | . . . . . . . . Corruption Blocked . | . . . . . . . . Effects 52 | . . 5 . . 26 15 6 Message Errors 15 | . . 1 . . 10 3 1 Matter Fused 11 | . . 1 . . 5 2 3 Heat Flow Errors 6 | . . . . . 2 3 1 Energy Discharges 5 | . . . . . 2 3 . Parts Rejected 1 | . . . . . . . 1 Parts Fused 1 | . . . . . . 1 . Data Loss (minor) 6 | . . . . . 4 2 . Data Loss (major) 2 | . . 2 . . . . . Misfires 1 | . . . . . . 1 . Alerts 1 | . . . . . 1 . . Misdirections 2 | . . . . . 2 . . Weapon Failures 1 | . . 1 . . . . . Overload Shots . | . . . . . . . . Overflow Damage 565 | . 60 . 3 2 183 317 . Projectiles . | . . . . . . . . Explosions 188 | . 60 . 3 . . 125 . Melee 377 | . . . . 2 183 192 . Knockbacks 9 | . 2 2 . 1 1 3 . Impact 5 | . . . . 1 1 3 . Kinetic 4 | . 2 2 . . . . . Secondary . | . . . . . . . . Self-Inflicted Damage 547 | . 160 155 82 . 11 113 26 Shots 18 | . 5 6 5 . 1 1 . Rammed 14 | . . . . . . . 14 Targets Rammed 37 | . . 2 . . 9 12 14 Kicked 23 | . . 2 . . 9 12 . Crushed . | . . . . . . . . Highest Temperature 246 | . 82 153 7 140 246 206 238 Average Temperature 48 | . 21 36 4 47 87 67 94 Received Heat Transfer 1173 | . 132 183 9 24 171 465 189 Effects 3 | . . . . . . . 3 Interference 3 | . . . . . . . 3 Siege Activations . | . . . . . . . . Robots Corrupted . | . . . . . . . . Combat Hostiles . | . . . . . . . . Parts Fried 4 | . . . . . 4 . . Impact Corruptions 9 | . . . . 1 8 . . Robots Melted . | . . . . . . . . Combat Hostiles . | . . . . . . . . Parts Melted 1 | . . . . 1 . . . Heat Transferred 1201 | . 185 . . 296 211 361 148 Parts Sabotaged . | . . . . . . . . Parts Stolen . | . . . . . . . . Parts Stripped . | . . . . . . . . Power Chain Reactions 2 | . . . . . 2 . . Alert | -11 -10 -9 -8 -7 -7 -6 -6 ------- Run | Yrd Mat Mat Mat Fac Sto Fac Ext Peak Influence 584 | . 528 584 413 267 577 226 228 Initial 246 | . . 140 246 187 109 193 30 Average 211 | . 212 343 292 155 383 107 122 Maximum Alert Level 2 | . 2 2 2 1 2 1 1 Low Security (%) 57 | 100 48 11 . 86 16 87 84 Level 1 29 | . 36 75 97 13 25 12 15 Level 2 13 | . 15 13 2 . 57 . . Level 3 . | . . . . . . . . Level 4 . | . . . . . . . . Level 5 . | . . . . . . . . High Security . | . . . . . . . . Max Security . | . . . . . . . . Squads Dispatched 22 | . 3 2 1 2 7 6 1 Investigation 4 | . 1 . . . 2 1 . Extermination 4 | . . . . 1 1 2 . Reinforcement 11 | . 2 2 1 1 1 3 1 Assault . | . . . . . . . . Garrison 3 | . . . . . 3 . . Intercept . | . . . . . . . . Searches Triggered . | . . . . . . . . Construction Impeded 1 | . . 1 . . . . . Haulers Reinforced 1 | . . . . . 1 . . Active Scanning Responses . | . . . . . . . . Cargo Convoy Interrupts . | . . . . . . . . Stealth | -11 -10 -9 -8 -7 -7 -6 -6 --------- Run | Yrd Mat Mat Mat Fac Sto Fac Ext Distress Signals 4 | . 1 . 1 . . 1 1 Communications Jammed 1 | . . . . . . 1 . Distress Signals 1 | . . . . . . 1 . Times Spotted 136 | . 24 26 10 19 20 22 15 Peak Tracking Total 10 | . 6 6 8 10 5 5 8 Tactical Retreats 18 | . 1 2 2 3 2 3 5 Traps | -11 -10 -9 -8 -7 -7 -6 -6 ------- Run | Yrd Mat Mat Mat Fac Sto Fac Ext Traps Triggered 6 | . 1 2 . 1 2 . . Indirectly . | . . . . . . . . Trap Hack Attempts . | . . . . . . . . Triggered . | . . . . . . . . Disarmed . | . . . . . . . . Reprogrammed . | . . . . . . . . Reused . | . . . . . . . . Traps Extracted . | . . . . . . . . Installed . | . . . . . . . . Triggered . | . . . . . . . . Machines | -11 -10 -9 -8 -7 -7 -6 -6 ---------- Run | Yrd Mat Mat Mat Fac Sto Fac Ext Machines Disabled 9 | . 1 2 2 . 3 1 . Max in Single Turn 2 | . 1 2 1 . 1 1 . Machines Repaired . | . . . . . . . . Machines Dismantled . | . . . . . . . . Machines Sabotaged . | . . . . . . . . Overloaded Fab Kills . | . . . . . . . . Hacking | -11 -10 -9 -8 -7 -7 -6 -6 --------- Run | Yrd Mat Mat Mat Fac Sto Fac Ext Machines Accessed 10 | . . . 1 2 5 2 . Terminals 9 | . . . 1 1 5 2 . Fabricators . | . . . . . . . . Repair Stations . | . . . . . . . . Recycling Units . | . . . . . . . . Scanalyzers . | . . . . . . . . Garrison Access 1 | . . . . 1 . . . Total Hacks 24 | . . . 2 6 8 8 . Successful 11 | . . . 2 2 4 3 . Failed 13 | . . . . 4 4 5 . Catastrophic 4 | . . . . 1 2 1 . Database Lockouts . | . . . . . . . . Manual 1 | . . . . . . 1 . Terminals 22 | . . . 2 4 8 8 . Fabricators . | . . . . . . . . Repair Stations . | . . . . . . . . Recycling Units . | . . . . . . . . Scanalyzers . | . . . . . . . . Garrison Access 2 | . . . . 2 . . . Terminal Hacks 11 | . . . 2 2 4 3 . Open Door 4 | . . . . . 4 . . Emergency Access Points 1 | . . . . 1 . . . Alert Level 1 | . . . . . . 1 . Locate Traps 3 | . . . . 1 . 2 . Dispatch Records 1 | . . . 1 . . . . Zone Layout 1 | . . . 1 . . . . Fabricator Hacks . | . . . . . . . . Repair Station Hacks . | . . . . . . . . Recycling Unit Hacks . | . . . . . . . . Scanalyzer . | . . . . . . . . Garrison Access Hacks . | . . . . . . . . Unauthorized Hacks . | . . . . . . . . Terminals . | . . . . . . . . Fabricators . | . . . . . . . . Repair Stations . | . . . . . . . . Recycling Units . | . . . . . . . . Scanalyzers . | . . . . . . . . Garrison Access . | . . . . . . . . Data Cores Recovered . | . . . . . . . . Used . | . . . . . . . . Hacking Detections 8 | . . . 1 2 3 2 . Full Trace Events 2 | . . . . . 1 1 . Feedback Events 1 | . . . . . 1 . . Corruption 1 | . . . . . 1 . . Feedback Blocked . | . . . . . . . . Robot Schematics Acquired . | . . . . . . . . Robots Built . | . . . . . . . . Authchips . | . . . . . . . . Time . | . . . . . . . . Total Robot Build Rating . | . . . . . . . . Part Schematics Acquired . | . . . . . . . . Parts Built . | . . . . . . . . Authchips . | . . . . . . . . Time . | . . . . . . . . Total Part Build Rating . | . . . . . . . . Parts Repaired . | . . . . . . . . Time . | . . . . . . . . Parts Recycled . | . . . . . . . . Recycled Matter . | . . . . . . . . Retrieved Matter . | . . . . . . . . Retrieved Components . | . . . . . . . . Parts Scanalyzed . | . . . . . . . . Part Schematics Acquired . | . . . . . . . . Parts Damaged . | . . . . . . . . Bothacking | -11 -10 -9 -8 -7 -7 -6 -6 ------------ Run | Yrd Mat Mat Mat Fac Sto Fac Ext Used RIF Installer . | . . . . . . . . Robots Hacked . | . . . . . . . . Non-combat . | . . . . . . . . Combat . | . . . . . . . . Robot Hacks Applied . | . . . . . . . . Relay Couplers Released 6 | . . . . . 3 3 . Programmers 6 | . . . . . 3 3 . Fabnet Peak Effective % . | . . . . . . . . Robots Rewired . | . . . . . . . . Allies Hacked . | . . . . . . . . Hacks Repelled . | . . . . . . . . Allies | -11 -10 -9 -8 -7 -7 -6 -6 -------- Run | Yrd Mat Mat Mat Fac Sto Fac Ext Total Allies 5 | . . . . . 5 . . Largest Group 2 | . . . . . 2 . . Highest-Rated Group 127 | . . . . . 127 . . Highest-Rated Ally 100 | . . . . . 100 . . Total Orders 2 | . . . . . . . 2 ROAM 1 | . . . . . . . 1 EXPLORE 1 | . . . . . . . 1 Ally Attacks 50 | . . . . . 50 . . Total Damage 1357 | . . . . . 1357 . . Kills 14 | . . . . . 14 . . Allies Corrupted . | . . . . . . . . Allies Melted . | . . . . . . . . Intel | -11 -10 -9 -8 -7 -7 -6 -6 ------- Run | Yrd Mat Mat Mat Fac Sto Fac Ext Robot Analysis Total . | . . . . . . . . Derelict Logs Recovered . | . . . . . . . . Drone Launches 2 | . . . . . . . 2 Drone Recoveries 1 | . . . . . . . 1 Exploration | -11 -10 -9 -8 -7 -7 -6 -6 ------------- Run | Yrd Mat Mat Mat Fac Sto Fac Ext Turns Passed 4753 | 74 439 774 102 645 802 1551 366 Spaces Moved 3346 | 52 261 432 213 925 409 627 427 Core 183 | 6 . 1 . . 172 . 4 Treads . | . . . . . . . . Legs 1645 | 46 261 424 . . 236 608 70 Wheels . | . . . . . . . . Hover . | . . . . . . . . Flight 1518 | . . 7 213 925 1 19 353 Fastest Speed 28 | 50 120 30 28 29 40 128 29 Average Speed 90 | 114 120 136 28 33 135 140 61 Slowest Speed 525 | 120 190 350 32 112 250 385 525 Overloaded Moves . | . . . . . . . . Propulsion Burnouts . | . . . . . . . . Robots Hopped 5 | . . . . 4 . . 1 Cave-ins Triggered . | . . . . . . . . Exploration Rate (%) 31 | 3 64 48 22 15 53 17 28 Regions Visited 7 Branch Regions 2 Pre-discovered Areas . | . . . . . . . . Known Exits Taken . | . . . . . . . . Unknown Exits Taken 7 | 1 1 1 1 1 1 1 . Scrap Searched . | . . . . . . . . Spaces Dug 36 | . . . 36 . . . . Terrain Destroyed 258 | . 93 74 36 . 17 34 4 Melee . | . . . . . . . . Projectile 5 | . . . . . . 1 4 AOE 253 | . 93 74 36 . 17 33 . Terrain Rammed . | . . . . . . . . Walls Destroyed . | . . . . . . . . Machines Disabled . | . . . . . . . . Actions | -11 -10 -9 -8 -7 -7 -6 -6 --------- Run | Yrd Mat Mat Mat Fac Sto Fac Ext Total 4729 | 63 336 542 248 1231 612 1179 518 Wait 984 | . 28 36 26 275 123 444 52 Move 3329 | 51 260 431 212 916 408 626 425 Hop 5 | . . . . 4 . . 1 Pick Up 41 | 6 8 10 2 3 6 4 2 Fast Attach 58 | 6 2 5 . 5 19 15 6 Attach 21 | . 3 6 3 1 2 4 2 Detach 6 | . . . . 1 2 2 1 Swap 14 | . 3 5 . 1 3 1 1 Drop 46 | . 6 12 . 4 16 3 5 Fire 120 | . 26 35 5 20 5 20 9 Melee 68 | . . . . 1 19 48 . Ram 14 | . . . . . . . 14 Kick 23 | . . 2 . . 9 12 . Crush . | . . . . . . . . Escape Stasis . | . . . . . . . . Rewire . | . . . . . . . . Trap . | . . . . . . . . Miscellaneous . | . . . . . . . . Route ------- -11/Scrapyard -10/Materials (discovered 2 exits: [*Mat x2]) -9/Materials (discovered 2 exits: *Mat / [*Min]) -8/Materials -7/Factory -7/Storage -6/Factory -6/Extension History --------- Turn | Location | Event 7 | -11/Scrapyard | Discovered new exit (range 15) 75 | -11/Scrapyard | Entered Materials 252 | -10/Materials | Discovered new exit (range 5) 334 | -10/Materials | Build established: Mutant 459 | -10/Materials | Lost 3 parts (1p1n1w) 506 | -10/Materials | Discovered new exit (range 6) 514 | -10/Materials | Entered another Materials area 514 | -9/Materials | Evolved 2 slots: Propulsion x1, Weapon x1 663 | -9/Materials | Discovered new exit (range 8) 821 | -9/Materials | Build established: Bomber 1232 | -9/Materials | Discovered new exit (range 13) 1288 | -9/Materials | Entered another Materials area 1288 | -8/Materials | Evolved 2 slots: Propulsion x1, Utility x1 1382 | -8/Materials | Discovered new exit (range 3) 1390 | -8/Materials | Entered Factory 1390 | -7/Factory | Evolved 2 slots: Utility x2 1940 | -7/Factory | Build established: Mutant 2014 | -7/Factory | Discovered new exit (range 14) 2035 | -7/Factory | Entered Storage 2140 | -7/Storage | Met 01-MTF 2367 | -7/Storage | System corruption reached 10% 2453 | -7/Storage | Garrison activated, responded to threat 2521 | -7/Storage | Lost 4 parts (1p2n1w) 2521 | -7/Storage | System corruption reached 30% 2664 | -7/Storage | Build established: Scavenger-Mutant 2806 | -7/Storage | Discovered new exit (range 15) 2837 | -7/Storage | Entered Factory 2837 | -6/Factory | Evolved 2 slots: Propulsion x1, Utility x1 3056 | -6/Factory | Build established: Mutant 3933 | -6/Factory | Lost 3 parts (1n1u1w) 4143 | -6/Factory | Lost 3 parts (2n1w) 4180 | -6/Factory | Spotted B-75 Beast 4383 | -6/Factory | Discovered new exit (range 3) 4388 | -6/Factory | Entered Extension 4417 | -6/Extension | Lost 7 parts (3n2u2w) 4637 | -6/Extension | Spotted B-75 Beast 4739 | -6/Extension | Core integrity fell below 50% 4748 | -6/Extension | Core integrity fell below 20% 4754 | -6/Extension | Destroyed by Y-54 Guardian with Gatling Laser Last Messages --------------- 04714_ Lgt. Deuterium Engine destroyed. 04716_ U-05 Engineer builds a Wall. 04717_ VTOL Module destroyed. 04719_ System corrupted: VTOL Module rejected. 04719_ Acquired VTOL Module. 04720_ Lgt. Nuclear Core destroyed. 04722_ U-05 Engineer builds a Wall. 04723_ W-25 Informer destroyed. 04735_ Autogun destroyed. 04738_ VTOL Module destroyed. 04739_ Slammed into Y-54 Guardian. 04743_ U-05 Engineer enters Transfer Station. 04743_ Slammed into Y-54 Guardian. 04745_ Destabilizing: Core damaged (-8). 04746_ Slammed into Y-54 Guardian. 04749_ K-01 Serf enters Transfer Station. 04750_ Slammed into Y-54 Guardian. 04750_ Destabilizing: System corrupted (+1). 04751_ Slammed into Y-54 Guardian. 04753_ U-05 Engineer enters Transfer Station. Map ----- +----------------------------------------------------+ | ???### ######### | | ?????# !!] | | ????## ###########"########## | | ????#" #?????????###????????? | | ????## #????????????????????? | | ?????# #????????????????????? | | ?????# #????????????????????? | | ?????# #????????????????????? | | ?????# #????????????????????? | | ?????# #????????????????????? | | ?????# #????????????????????? | | ?????# #????????????????????? | | ?????# #????????????????????? | | ?????# #????????????????????? | | ?????# #????????????????????? | | ?????# #????????????????????? | | ?????# #????????????????????? | | ?????# #????????????????????? | | ?????# #????????????????????? | | ?##### #####????????????????? | | ?# "" "" #????????????????? | | ?# " " ################## | | ?# | | ?# Y | | ?# | | ?# @ | | ?# Y R | | ?# ################## | | ?# #????????????????? | | ?###" "###????????????????? | | ???#" "#??????????????????? | | ???#"""""#??????????????????? | | ???#######??????????????????? | | ????????????????????????????? | | ????????????????????????????? | | | | | | | | | | | | | | | | | | | | | | | | | | | | | | | +----------------------------------------------------+ Best States ------------- Heat Dissipation 48 Energy Generation 18 Energy Capacity 310 Matter Stores 300 Matter Capacity 400 Sight Range 16 Robot Scan Range 16 Terrain Scan Range 16 Terrain Scan Density 85 Jamming Range 12 Additional Mass Support 6 Armor Coverage 600 Resistance: EM 15 Evasion (%) 64 Target Analysis 6 Item Schematics ----------------- None Robot Schematics ------------------ None Fabricated ------------ Nothing Alien Tech Used ----------------- None Achievements -------------- None Challenges ------------ None Game ------ Seed BattleCoreKit Manual? 0 Play Time 01:13:15 Cumulative 17.1 hours Start 2024.06.08 @ 16:57:47 End 2024.06.11 @ 12:35:47 Sessions 5 Manual Loads 0 Difficulty Rogue Special Mode None Game No. 15 Rogue 15 Adventurer 0 Explorer 0 Win Type - Total 0 Types 0/0/0/0/0/0/0/0/0 Lore% 3 Gallery% 24 Achievement% 20 Wizard Run 0 Options --------- Layout 0 ASCII 0 Keyboard 1 Movement Vi Keybinds 0 Fullscreen 2 Font 24/Tamsyn Map View 76x50 Zoom Use 0% Tactical HUD 1 Map Filters NONE Filters NONE Steam 0 RUN: aa04e17b-be7d-463f-aaa8-e65045cf91e0